[Event "Early-Titled-Tuesday-Blitz-October-24-2023"]
[Site "Chess.com"]
[Date "2023.10.24"]
[Round "4"]
[White "Malikova777"]
[Black "WindWhistler11"]
[Result "0-1"]
[WhiteElo "2229"]
[BlackElo "2451"]
[TimeControl "180+1"]
[EndTime "8:39:09 PDT"]
[Termination "WindWhistler11 won by checkmate"]

1. d4 {[%clk 0:03:00.9]} 1... Nf6 {[%clk 0:02:57.2]} 2. c4 {[%clk 0:03:01.5]}
2... e6 {[%clk 0:02:56.5]} 3. Nc3 {[%clk 0:03:01.9]} 3... c5 {[%clk 0:02:57.1]}
4. d5 {[%clk 0:03:01.7]} 4... exd5 {[%clk 0:02:58]} 5. cxd5 {[%clk 0:03:02.3]}
5... Bd6 {[%clk 0:02:58.7]} 6. e4 {[%clk 0:03:01.9]} 6... O-O {[%clk 0:02:59.3]}
7. Nf3 {[%clk 0:03:01.5]} 7... Re8 {[%clk 0:02:59.6]} 8. Bd3 {[%clk 0:03:01.7]}
8... Bc7 {[%clk 0:02:58.9]} 9. O-O {[%clk 0:02:59.8]} 9... d6 {[%clk 0:02:59.5]}
10. a4 {[%clk 0:02:57.7]} 10... a6 {[%clk 0:02:59.9]} 11. Bf4 {[%clk 0:02:53.2]}
11... Nbd7 {[%clk 0:02:57]} 12. Re1 {[%clk 0:02:51.7]} 12... Nf8 {[%clk
0:02:57.5]} 13. Nd2 {[%clk 0:02:51.1]} 13... Ng6 {[%clk 0:02:56]} 14. Bg3 {[%clk
0:02:51.6]} 14... Rb8 {[%clk 0:02:53]} 15. f4 {[%clk 0:02:44]} 15... Bg4 {[%clk
0:02:47.3]} 16. Qc2 {[%clk 0:02:41.7]} 16... Nh5 {[%clk 0:02:36]} 17. Rf1 {[%clk
0:02:25.5]} 17... Bd7 {[%clk 0:02:17.8]} 18. Nc4 {[%clk 0:02:12]} 18... b5
{[%clk 0:02:12.6]} 19. axb5 {[%clk 0:02:10.8]} 19... axb5 {[%clk 0:02:13.5]} 20.
Ne3 {[%clk 0:02:09.8]} 20... c4 {[%clk 0:02:08.6]} 21. Be2 {[%clk 0:02:09.4]}
21... Nxg3 {[%clk 0:01:56.8]} 22. hxg3 {[%clk 0:02:08.8]} 22... Bb6 {[%clk
0:01:55.2]} 23. Rf3 {[%clk 0:02:05.2]} 23... Bg4 {[%clk 0:01:46.8]} 24. Qd2
{[%clk 0:01:59.1]} 24... b4 {[%clk 0:01:34.9]} 25. Nd1 {[%clk 0:01:52.2]} 25...
Bxf3 {[%clk 0:01:15.9]} 26. gxf3 {[%clk 0:01:53.1]} 26... Qc7 {[%clk 0:01:11.2]}
27. Kg2 {[%clk 0:01:49.2]} 27... Rec8 {[%clk 0:01:04.3]} 28. Nxc4 {[%clk
0:01:45.7]} 28... Qc5 {[%clk 0:00:54.6]} 29. Nde3 {[%clk 0:01:45.2]} 29... b3
{[%clk 0:00:50.5]} 30. Nxb6 {[%clk 0:01:38.8]} 30... Rxb6 {[%clk 0:00:46.9]} 31.
Nc4 {[%clk 0:01:39]} 31... Rbb8 {[%clk 0:00:41.3]} 32. Ra5 {[%clk 0:01:36.9]}
32... Qc7 {[%clk 0:00:39.6]} 33. Ra6 {[%clk 0:01:34.4]} 33... Rd8 {[%clk
0:00:37.1]} 34. Qa5 {[%clk 0:01:31.3]} 34... Qe7 {[%clk 0:00:34.8]} 35. Rb6
{[%clk 0:01:25.4]} 35... Rbc8 {[%clk 0:00:33.7]} 36. Rxb3 {[%clk 0:01:24.2]}
36... h5 {[%clk 0:00:33.4]} 37. Rc3 {[%clk 0:01:16.5]} 37... h4 {[%clk
0:00:33.5]} 38. f5 {[%clk 0:01:15.4]} 38... Qg5 {[%clk 0:00:27.2]} 39. fxg6
{[%clk 0:00:20.8]} 39... Qxg3+ {[%clk 0:00:27.2]} 40. Kh1 {[%clk 0:00:17.3]}
40... Ra8 {[%clk 0:00:27.7]} 41. Bf1 {[%clk 0:00:04.4]} 41... Rxa5 {[%clk
0:00:24.2]} 42. Nxa5 {[%clk 0:00:05.3]} 42... fxg6 {[%clk 0:00:21]} 43. Nc6
{[%clk 0:00:04.4]} 43... Rf8 {[%clk 0:00:21.3]} 44. b4 {[%clk 0:00:04.1]} 44...
Rxf3 {[%clk 0:00:20.3]} 45. Rxf3 {[%clk 0:00:04.8]} 45... Qxf3+ {[%clk 0:00:20]}
46. Bg2 {[%clk 0:00:05.7]} 46... Qd1+ {[%clk 0:00:18.6]} 47. Kh2 {[%clk
0:00:06.1]} 47... Qe1 {[%clk 0:00:16.3]} 48. b5 {[%clk 0:00:05.9]} 48... Qg3+
{[%clk 0:00:16.8]} 49. Kh1 {[%clk 0:00:05.9]} 49... h3 {[%clk 0:00:17.5]} 50.
Bxh3 {[%clk 0:00:06.1]} 50... Qxh3+ {[%clk 0:00:17.5]} 51. Kg1 {[%clk 0:00:07]}
51... Qe3+ {[%clk 0:00:17.9]} 52. Kh2 {[%clk 0:00:06.5]} 52... Qe2+ {[%clk
0:00:14.4]} 53. Kg1 {[%clk 0:00:05.9]} 53... Qxb5 {[%clk 0:00:14.1]} 54. e5
{[%clk 0:00:04]} 54... Qb1+ {[%clk 0:00:12.2]} 55. Kh2 {[%clk 0:00:03.8]} 55...
Qc2+ {[%clk 0:00:12.1]} 56. Kg1 {[%clk 0:00:03.7]} 56... Qd1+ {[%clk 0:00:11.4]}
57. Kh2 {[%clk 0:00:04.2]} 57... Qd2+ {[%clk 0:00:11.4]} 58. Kg1 {[%clk
0:00:03.7]} 58... dxe5 {[%clk 0:00:09.6]} 59. Kh1 {[%clk 0:00:02.5]} 59... Qxd5+
{[%clk 0:00:09.1]} 60. Kg1 {[%clk 0:00:03.4]} 60... Qxc6 {[%clk 0:00:09.6]} 61.
Kh2 {[%clk 0:00:03.7]} 61... Qc4 {[%clk 0:00:09.7]} 62. Kg3 {[%clk 0:00:04.6]}
62... Kf7 {[%clk 0:00:09.6]} 63. Kh3 {[%clk 0:00:05]} 63... Qf4 {[%clk
0:00:09.7]} 64. Kg2 {[%clk 0:00:05.9]} 64... e4 {[%clk 0:00:10.2]} 65. Kg1
{[%clk 0:00:06.3]} 65... e3 {[%clk 0:00:11.1]} 66. Kh1 {[%clk 0:00:04.7]} 66...
e2 {[%clk 0:00:11.5]} 67. Kg2 {[%clk 0:00:04.7]} 67... Ke6 {[%clk 0:00:12.1]}
68. Kh3 {[%clk 0:00:04.8]} 68... Kf5 {[%clk 0:00:12.2]} 69. Kg2 {[%clk
0:00:05.2]} 69... Kg4 {[%clk 0:00:12.7]} 70. Kg1 {[%clk 0:00:05]} 70... e1=Q+
{[%clk 0:00:12.7]} 71. Kg2 {[%clk 0:00:05.9]} 71... Qff2# {[%clk 0:00:12.5]} 0-1

[Event "Early-Titled-Tuesday-Blitz-October-24-2023"]
[Site "Chess.com"]
[Date "2023.10.24"]
[Round "4"]
[White "Mr_ruthless"]
[Black "Makswolf200817"]
[Result "1-0"]
[WhiteElo "2476"]
[BlackElo "2638"]
[TimeControl "180+1"]
[EndTime "8:39:11 PDT"]
[Termination "Mr_ruthless won by resignation"]

1. e4 {[%clk 0:03:00.9]} 1... c5 {[%clk 0:02:59.3]} 2. Nf3 {[%clk 0:03:00.8]}
2... d6 {[%clk 0:02:59.9]} 3. d4 {[%clk 0:03:01.1]} 3... cxd4 {[%clk 0:03:00.6]}
4. Nxd4 {[%clk 0:03:02]} 4... Nf6 {[%clk 0:03:01.3]} 5. f3 {[%clk 0:03:02.7]}
5... e5 {[%clk 0:02:57.7]} 6. Nb3 {[%clk 0:03:00.9]} 6... Be7 {[%clk 0:02:53.8]}
7. c4 {[%clk 0:03:00.1]} 7... a5 {[%clk 0:02:49.5]} 8. Be3 {[%clk 0:02:56.9]}
8... Be6 {[%clk 0:02:39.9]} 9. Nc3 {[%clk 0:02:56.1]} 9... O-O {[%clk
0:02:26.5]} 10. Be2 {[%clk 0:02:51.3]} 10... Nh5 {[%clk 0:02:24.4]} 11. Nd5
{[%clk 0:02:45.7]} 11... Bg5 {[%clk 0:02:21]} 12. Bb6 {[%clk 0:02:43.8]} 12...
Qd7 {[%clk 0:02:04]} 13. Nc7 {[%clk 0:02:29.2]} 13... Na6 {[%clk 0:01:47.5]} 14.
Nxa8 {[%clk 0:02:27]} 14... a4 {[%clk 0:01:47.6]} 15. Nc5 {[%clk 0:02:08.7]}
15... Nxc5 {[%clk 0:01:01.6]} 16. Bxc5 {[%clk 0:02:08.7]} 16... Rxa8 {[%clk
0:01:00.4]} 17. Qxd6 {[%clk 0:02:08.9]} 17... Qc8 {[%clk 0:00:59.6]} 18. g3
{[%clk 0:01:50.5]} 18... Nf6 {[%clk 0:00:35.4]} 19. Qxe5 {[%clk 0:01:18.6]}
19... Ra5 {[%clk 0:00:22.4]} 20. Qxg5 {[%clk 0:01:13.3]} 20... Rxc5 {[%clk
0:00:22.9]} 21. Qe3 {[%clk 0:01:12.7]} 21... Nd7 {[%clk 0:00:20.5]} 22. O-O
{[%clk 0:01:10.3]} 22... Bxc4 {[%clk 0:00:18.6]} 23. Bxc4 {[%clk 0:01:09.5]}
23... Rxc4 {[%clk 0:00:19.5]} 24. Rac1 {[%clk 0:01:10]} 24... Ne5 {[%clk
0:00:18.6]} 25. Rxc4 {[%clk 0:01:09.7]} 25... Qxc4 {[%clk 0:00:19.5]} 26. Rc1
{[%clk 0:01:06.9]} 26... Qe6 {[%clk 0:00:20.1]} 27. b3 {[%clk 0:00:59.6]} 27...
a3 {[%clk 0:00:19.2]} 28. f4 {[%clk 0:00:32.6]} 28... Nc6 {[%clk 0:00:17.6]} 29.
Rd1 {[%clk 0:00:27.2]} 29... h5 {[%clk 0:00:17.1]} 30. Rd2 {[%clk 0:00:20.6]}
30... h4 {[%clk 0:00:16.1]} 31. Qd3 {[%clk 0:00:20.4]} 31... h3 {[%clk 0:00:15]}
32. Qd5 {[%clk 0:00:19.8]} 32... Qg4 {[%clk 0:00:15.4]} 33. Qf5 {[%clk
0:00:16.8]} 33... Qf3 {[%clk 0:00:12]} 34. Qc8+ {[%clk 0:00:16.7]} 34... Kh7
{[%clk 0:00:12.8]} 35. Qxh3+ {[%clk 0:00:17.3]} 35... Kg8 {[%clk 0:00:13.6]} 36.
Qg2 {[%clk 0:00:17]} 36... Qe3+ {[%clk 0:00:12]} 37. Kf1 {[%clk 0:00:13.4]}
37... g6 {[%clk 0:00:07.4]} 38. Qe2 {[%clk 0:00:13.2]} 38... Qc3 {[%clk
0:00:07.3]} 39. Qd3 {[%clk 0:00:12.5]} 39... Qc1+ {[%clk 0:00:06.3]} 40. Kg2
{[%clk 0:00:13.1]} 40... Qc5 {[%clk 0:00:06]} 41. h4 {[%clk 0:00:09.6]} 41...
Qh5 {[%clk 0:00:05.6]} 42. Qf3 {[%clk 0:00:08.4]} 42... Qa5 {[%clk 0:00:05.3]}
43. Qd3 {[%clk 0:00:06.9]} 43... Qh5 {[%clk 0:00:05.4]} 44. Qe2 {[%clk
0:00:07.5]} 44... Qc5 {[%clk 0:00:05.2]} 45. h5 {[%clk 0:00:07.9]} 45... gxh5
{[%clk 0:00:04.9]} 46. Rd5 {[%clk 0:00:07.6]} 46... Qe7 {[%clk 0:00:04.2]} 47.
Rxh5 {[%clk 0:00:07.7]} 47... Kf8 {[%clk 0:00:04.8]} 48. Rh8+ {[%clk 0:00:07.4]}
48... Kg7 {[%clk 0:00:05.3]} 49. Rh4 {[%clk 0:00:05.9]} 49... Kf8 {[%clk
0:00:05.2]} 50. e5 {[%clk 0:00:05.3]} 50... Qe6 {[%clk 0:00:04.1]} 51. Qg4
{[%clk 0:00:04.3]} 51... Qd5+ {[%clk 0:00:04.4]} 52. Kh3 {[%clk 0:00:04.6]}
52... Ke7 {[%clk 0:00:01.4]} 53. Qg5+ {[%clk 0:00:04.6]} 53... Kd7 {[%clk
0:00:02.1]} 54. Qf5+ {[%clk 0:00:04.8]} 54... Kc7 {[%clk 0:00:02.8]} 55. Rh7
{[%clk 0:00:04.2]} 55... Nd8 {[%clk 0:00:03.5]} 56. Qf6 {[%clk 0:00:04.1]} 56...
Qd7+ {[%clk 0:00:03.1]} 57. Kh4 {[%clk 0:00:03.7]} 57... Qd2 {[%clk 0:00:02.7]}
58. Rh8 {[%clk 0:00:03.6]} 58... Qh2+ {[%clk 0:00:01.4]} 59. Kg4 {[%clk
0:00:04.1]} 59... Ne6 {[%clk 0:00:02.2]} 60. Rxh2 {[%clk 0:00:03.3]} 1-0

[Event "Early-Titled-Tuesday-Blitz-October-24-2023"]
[Site "Chess.com"]
[Date "2023.10.24"]
[Round "4"]
[White "gueraumasague"]
[Black "Apocalyps999"]
[Result "1/2-1/2"]
[WhiteElo "2489"]
[BlackElo "2301"]
[TimeControl "180+1"]
[EndTime "8:39:11 PDT"]
[Termination "Game drawn by stalemate"]

1. e4 {[%clk 0:02:58.3]} 1... e5 {[%clk 0:03:00]} 2. Nc3 {[%clk 0:02:59.2]} 2...
Nf6 {[%clk 0:02:59.5]} 3. f4 {[%clk 0:02:59.9]} 3... d5 {[%clk 0:03:00]} 4. fxe5
{[%clk 0:02:59.7]} 4... Nxe4 {[%clk 0:03:00.5]} 5. Qf3 {[%clk 0:03:00.3]} 5...
f5 {[%clk 0:03:01]} 6. d3 {[%clk 0:03:00.2]} 6... Nxc3 {[%clk 0:03:01.4]} 7.
bxc3 {[%clk 0:03:01.1]} 7... d4 {[%clk 0:03:02]} 8. c4 {[%clk 0:03:01.8]} 8...
c5 {[%clk 0:02:58.6]} 9. Qg3 {[%clk 0:02:49]} 9... Nc6 {[%clk 0:02:57.1]} 10.
Be2 {[%clk 0:02:49.1]} 10... g6 {[%clk 0:02:47.5]} 11. h4 {[%clk 0:02:47.2]}
11... Qa5+ {[%clk 0:02:39.7]} 12. Kd1 {[%clk 0:02:37]} 12... Qc7 {[%clk
0:02:38.5]} 13. Bf4 {[%clk 0:02:27.4]} 13... Bg7 {[%clk 0:02:32.9]} 14. h5
{[%clk 0:02:12.4]} 14... Bxe5 {[%clk 0:02:14.5]} 15. Bxe5 {[%clk 0:02:10.5]}
15... Qxe5 {[%clk 0:02:14.1]} 16. Qxe5+ {[%clk 0:01:46.2]} 16... Nxe5 {[%clk
0:02:15]} 17. hxg6 {[%clk 0:01:46.8]} 17... Nxg6 {[%clk 0:02:15.9]} 18. Kd2
{[%clk 0:01:44.9]} 18... Kf7 {[%clk 0:02:09.4]} 19. Rb1 {[%clk 0:01:37]} 19...
Rb8 {[%clk 0:02:06.6]} 20. Nh3 {[%clk 0:01:26.7]} 20... Kf6 {[%clk 0:02:05.6]}
21. Rhf1 {[%clk 0:01:18]} 21... Bd7 {[%clk 0:01:45]} 22. g4 {[%clk 0:01:14.4]}
22... Ne7 {[%clk 0:01:07]} 23. Nf4 {[%clk 0:00:59.3]} 23... Rhf8 {[%clk
0:00:43]} 24. gxf5 {[%clk 0:00:36.7]} 24... Nxf5 {[%clk 0:00:37.8]} 25. Nd5+
{[%clk 0:00:33.2]} 25... Ke5 {[%clk 0:00:37.6]} 26. Bf3 {[%clk 0:00:32.1]} 26...
Bc6 {[%clk 0:00:33.4]} 27. Rbe1+ {[%clk 0:00:30.5]} 27... Kd6 {[%clk 0:00:32.8]}
28. Bg4 {[%clk 0:00:28.7]} 28... Bxd5 {[%clk 0:00:19.2]} 29. Bxf5 {[%clk
0:00:16.8]} 29... Bg8 {[%clk 0:00:19.4]} 30. a4 {[%clk 0:00:17]} 30... b6 {[%clk
0:00:19]} 31. Be4 {[%clk 0:00:14.7]} 31... a5 {[%clk 0:00:11.2]} 32. Ke2 {[%clk
0:00:14.1]} 32... Ke7 {[%clk 0:00:09.6]} 33. Rh1 {[%clk 0:00:14]} 33... Kd6
{[%clk 0:00:08.6]} 34. Rh6+ {[%clk 0:00:13.9]} 34... Kc7 {[%clk 0:00:09]} 35.
Reh1 {[%clk 0:00:10.1]} 35... Rbe8 {[%clk 0:00:09]} 36. Kd2 {[%clk 0:00:09.4]}
36... Re6 {[%clk 0:00:08.2]} 37. Rxe6 {[%clk 0:00:08.8]} 37... Bxe6 {[%clk
0:00:09.1]} 38. Rxh7+ {[%clk 0:00:08.9]} 38... Rf7 {[%clk 0:00:09.8]} 39. Rh6
{[%clk 0:00:08.7]} 39... Re7 {[%clk 0:00:06.2]} 40. Kc1 {[%clk 0:00:07.2]} 40...
Bd7 {[%clk 0:00:06.4]} 41. Kb2 {[%clk 0:00:05.2]} 41... Bxa4 {[%clk 0:00:07]}
42. c3 {[%clk 0:00:05.8]} 42... Be8 {[%clk 0:00:07.5]} 43. cxd4 {[%clk
0:00:06.2]} 43... cxd4 {[%clk 0:00:08.4]} 44. Rh5 {[%clk 0:00:05.8]} 44... Bc6
{[%clk 0:00:07.3]} 45. Bxc6 {[%clk 0:00:02.7]} 45... Kxc6 {[%clk 0:00:08.2]} 46.
Rd5 {[%clk 0:00:02.9]} 46... Rd7 {[%clk 0:00:08.9]} 47. Rg5 {[%clk 0:00:03.5]}
47... Kb7 {[%clk 0:00:06.6]} 48. Kb3 {[%clk 0:00:04.1]} 48... Ka6 {[%clk
0:00:07]} 49. Ka4 {[%clk 0:00:04.7]} 49... Rf7 {[%clk 0:00:05]} 50. Rg6 {[%clk
0:00:04.5]} 50... Rd7 {[%clk 0:00:05]} 51. c5 {[%clk 0:00:04.9]} 51... Rb7
{[%clk 0:00:05.6]} 52. Rd6 {[%clk 0:00:04.9]} 52... Ka7 {[%clk 0:00:05.9]} 53.
cxb6+ {[%clk 0:00:05.3]} 53... Rxb6 {[%clk 0:00:06.8]} 54. Rxd4 {[%clk
0:00:05.8]} 54... Rb4+ {[%clk 0:00:06.4]} 55. Rxb4 {[%clk 0:00:05.7]} 55... axb4
{[%clk 0:00:07.3]} 56. Kxb4 {[%clk 0:00:06.2]} 56... Kb6 {[%clk 0:00:08.2]} 57.
Kc4 {[%clk 0:00:06.1]} 57... Kc6 {[%clk 0:00:08.8]} 58. Kd4 {[%clk 0:00:06.7]}
58... Kd6 {[%clk 0:00:09.2]} 59. Ke4 {[%clk 0:00:07.6]} 59... Ke6 {[%clk
0:00:09.8]} 60. d4 {[%clk 0:00:08.5]} 60... Kd6 {[%clk 0:00:10.2]} 61. d5 {[%clk
0:00:09.4]} 61... Kd7 {[%clk 0:00:10.7]} 62. Kd4 {[%clk 0:00:10.3]} 62... Kd6
{[%clk 0:00:11]} 63. Ke4 {[%clk 0:00:10.6]} 63... Kd7 {[%clk 0:00:11.3]} 64. Ke5
{[%clk 0:00:11.5]} 64... Ke7 {[%clk 0:00:11.8]} 65. d6+ {[%clk 0:00:11.9]} 65...
Kd7 {[%clk 0:00:12.2]} 66. Kd5 {[%clk 0:00:12.8]} 66... Kd8 {[%clk 0:00:12]} 67.
Ke6 {[%clk 0:00:13.2]} 67... Ke8 {[%clk 0:00:12.3]} 68. Ke5 {[%clk 0:00:13.6]}
68... Kd7 {[%clk 0:00:12.3]} 69. Kd5 {[%clk 0:00:14.5]} 69... Kd8 {[%clk
0:00:12.7]} 70. Kc6 {[%clk 0:00:15.4]} 70... Kc8 {[%clk 0:00:13.1]} 71. Kd5
{[%clk 0:00:15.6]} 71... Kd7 {[%clk 0:00:13.5]} 72. Kc5 {[%clk 0:00:15.5]} 72...
Kd8 {[%clk 0:00:13.5]} 73. Kc6 {[%clk 0:00:16]} 73... Kc8 {[%clk 0:00:13.7]} 74.
Kd5 {[%clk 0:00:16.9]} 74... Kd7 {[%clk 0:00:13.9]} 75. Ke5 {[%clk 0:00:17.2]}
75... Kd8 {[%clk 0:00:14.3]} 76. Ke6 {[%clk 0:00:18.1]} 76... Ke8 {[%clk
0:00:13.7]} 77. d7+ {[%clk 0:00:18.5]} 77... Kd8 {[%clk 0:00:14]} 78. Kd6 {[%clk
0:00:19.4]} 1/2-1/2

[Event "Early-Titled-Tuesday-Blitz-October-24-2023"]
[Site "Chess.com"]
[Date "2023.10.24"]
[Round "4"]
[White "N4700000"]
[Black "Thunderbolt135"]
[Result "0-1"]
[WhiteElo "2533"]
[BlackElo "2765"]
[TimeControl "180+1"]
[EndTime "8:39:15 PDT"]
[Termination "Thunderbolt135 won on time"]

1. f4 {[%clk 0:02:57.2]} 1... d5 {[%clk 0:02:56.8]} 2. Nf3 {[%clk 0:02:56.5]}
2... g6 {[%clk 0:02:57.1]} 3. g3 {[%clk 0:02:52.8]} 3... Bg7 {[%clk 0:02:57.6]}
4. Bg2 {[%clk 0:02:52.3]} 4... Nf6 {[%clk 0:02:58.3]} 5. O-O {[%clk 0:02:51.4]}
5... O-O {[%clk 0:02:58.8]} 6. d3 {[%clk 0:02:49.4]} 6... c5 {[%clk 0:02:59.2]}
7. Qe1 {[%clk 0:02:41.3]} 7... Nc6 {[%clk 0:02:59.2]} 8. c3 {[%clk 0:02:39.8]}
8... b6 {[%clk 0:02:53]} 9. e4 {[%clk 0:02:27]} 9... Ba6 {[%clk 0:02:50.9]} 10.
e5 {[%clk 0:02:25.3]} 10... Nd7 {[%clk 0:02:51.6]} 11. Qe2 {[%clk 0:02:15.3]}
11... Qc7 {[%clk 0:02:49.2]} 12. e6 {[%clk 0:02:06.5]} 12... fxe6 {[%clk
0:02:14.5]} 13. Ng5 {[%clk 0:02:05.5]} 13... Nd8 {[%clk 0:01:48.1]} 14. Nxe6
{[%clk 0:02:02.8]} 14... Nxe6 {[%clk 0:01:49]} 15. Qxe6+ {[%clk 0:02:02.8]}
15... Kh8 {[%clk 0:01:49.4]} 16. Bxd5 {[%clk 0:01:40.6]} 16... Bxd3 {[%clk
0:01:46.1]} 17. Rd1 {[%clk 0:01:38.7]} 17... Bf5 {[%clk 0:01:41.6]} 18. Qe2
{[%clk 0:01:28.7]} 18... Rad8 {[%clk 0:01:37.8]} 19. Na3 {[%clk 0:01:23.9]}
19... Nf6 {[%clk 0:01:19.4]} 20. Bf3 {[%clk 0:01:20.8]} 20... Rxd1+ {[%clk
0:01:19.4]} 21. Qxd1 {[%clk 0:01:20.5]} 21... Rd8 {[%clk 0:01:20.3]} 22. Qe2
{[%clk 0:01:20.2]} 22... Bd3 {[%clk 0:01:19]} 23. Qe1 {[%clk 0:01:15.1]} 23...
Ba6 {[%clk 0:00:51]} 24. Be3 {[%clk 0:01:13.8]} 24... e5 {[%clk 0:00:51.4]} 25.
fxe5 {[%clk 0:01:04.7]} 25... Qxe5 {[%clk 0:00:52.3]} 26. Bf4 {[%clk 0:01:02.5]}
26... Qf5 {[%clk 0:00:45.2]} 27. Rd1 {[%clk 0:00:58.8]} 27... Rxd1 {[%clk
0:00:45.4]} 28. Qxd1 {[%clk 0:00:59.7]} 28... h6 {[%clk 0:00:45.9]} 29. Nc2
{[%clk 0:00:43.6]} 29... Qe6 {[%clk 0:00:34.2]} 30. a3 {[%clk 0:00:27.1]} 30...
Kh7 {[%clk 0:00:28.9]} 31. Qd2 {[%clk 0:00:24.9]} 31... Qe7 {[%clk 0:00:16]} 32.
Ne3 {[%clk 0:00:22.8]} 32... Bb7 {[%clk 0:00:16.6]} 33. Nd5 {[%clk 0:00:18.4]}
33... Bxd5 {[%clk 0:00:14.3]} 34. Bxd5 {[%clk 0:00:19.3]} 34... Nxd5 {[%clk
0:00:15.2]} 35. Qxd5 {[%clk 0:00:19.3]} 35... Qe1+ {[%clk 0:00:15.4]} 36. Kg2
{[%clk 0:00:19.8]} 36... Qe2+ {[%clk 0:00:16.3]} 37. Kh3 {[%clk 0:00:16.5]}
37... Qxb2 {[%clk 0:00:13]} 38. Qf7 {[%clk 0:00:16.1]} 38... Qxc3 {[%clk
0:00:11.8]} 39. Qxa7 {[%clk 0:00:15]} 39... Qf6 {[%clk 0:00:12.5]} 40. Bc7
{[%clk 0:00:13]} 40... c4 {[%clk 0:00:08.6]} 41. Qxb6 {[%clk 0:00:12.3]} 41...
Qf5+ {[%clk 0:00:09.2]} 42. Kg2 {[%clk 0:00:11.7]} 42... c3 {[%clk 0:00:09.5]}
43. Qc6 {[%clk 0:00:11.3]} 43... Qc2+ {[%clk 0:00:07]} 44. Kh3 {[%clk 0:00:10]}
44... Qf5+ {[%clk 0:00:07.6]} 45. Kg2 {[%clk 0:00:10]} 45... c2 {[%clk
0:00:08.1]} 46. Bf4 {[%clk 0:00:09.5]} 46... Qd3 {[%clk 0:00:07.5]} 47. Qc7
{[%clk 0:00:08.9]} 47... g5 {[%clk 0:00:07.6]} 48. Be5 {[%clk 0:00:08.7]} 48...
Qe2+ {[%clk 0:00:07.6]} 49. Kh3 {[%clk 0:00:08.4]} 49... Qxe5 {[%clk 0:00:05.6]}
50. Qxc2+ {[%clk 0:00:08.6]} 50... Kg8 {[%clk 0:00:06.1]} 51. Qc4+ {[%clk
0:00:08.7]} 51... Kf8 {[%clk 0:00:06]} 52. a4 {[%clk 0:00:08.3]} 52... Qf5+
{[%clk 0:00:05.9]} 53. Kg2 {[%clk 0:00:08]} 53... g4 {[%clk 0:00:05.6]} 54. Qb4+
{[%clk 0:00:05.1]} 54... Kg8 {[%clk 0:00:05.9]} 55. a5 {[%clk 0:00:05.2]} 55...
Qf3+ {[%clk 0:00:05.5]} 56. Kg1 {[%clk 0:00:05.7]} 56... Qd1+ {[%clk 0:00:05.6]}
57. Kg2 {[%clk 0:00:05.7]} 57... Qe2+ {[%clk 0:00:05.3]} 58. Kg1 {[%clk
0:00:05.4]} 58... Bf8 {[%clk 0:00:04.9]} 59. Qb3+ {[%clk 0:00:04.5]} 59... Kg7
{[%clk 0:00:05.4]} 60. Qc3+ {[%clk 0:00:04.6]} 60... Kf7 {[%clk 0:00:06.1]} 61.
Qb3+ {[%clk 0:00:04.3]} 61... Kf6 {[%clk 0:00:06.1]} 62. Qc3+ {[%clk 0:00:04.1]}
62... Qe5 {[%clk 0:00:05.8]} 63. Qc6+ {[%clk 0:00:02.9]} 63... Qe6 {[%clk
0:00:06.1]} 64. Qc3+ {[%clk 0:00:02.5]} 64... Kg6 {[%clk 0:00:05.8]} 0-1